fUSD/lending_fUSD_20240423
["ID","MTS","AMOUNT","RATE_DAILY","PERIOD"]
[323282400,1713870632517,-500.0,0.00011274,2]
[323282401,1713870632526,-500.0,0.00011274,2]
[323282402,1713870632536,-500.0,0.00011274,2]
[323282403,1713870632546,-500.0,0.00011274,2]
[323282404,1713870632555,-500.0,0.00011274,2]
[323282405,1713870632564,-500.0,0.00011274,2]
[323282406,1713870632574,-500.0,0.00011274,2]
[323282407,1713870632584,-500.0,0.00011274,2]
[323282408,1713870632593,-500.0,0.00011274,2]
[323282409,1713870632603,-1005.14,0.00011274,2]
[323282410,1713870632612,-329.041338,0.00011274,2]
[323282411,1713870632621,-500.0,0.00011274,2]
[323282412,1713870632630,-500.0,0.00011274,2]
[323282413,1713870632639,-500.0,0.00011274,2]
[323282414,1713870632648,-863.22,0.00011274,2]
[323282415,1713870632657,-500.0,0.00011274,2]
[323282416,1713870632666,-1210.14,0.00011274,2]
[323282417,1713870632675,-500.0,0.00011274,2]
[323282418,1713870632686,-551.35,0.00011274,2]
[323282419,1713870632694,-500.0,0.00011274,2]
[323282420,1713870632704,-500.0,0.00011274,2]
[323282421,1713870632713,-690.88,0.00011274,2]
[323282422,1713870632723,-500.0,0.00011274,2]
[323282423,1713870632732,-500.0,0.00011274,2]
[323282425,1713870632742,-500.0,0.00011274,2]
[323282426,1713870632751,-1014.34,0.00011274,2]
[323282427,1713870632760,-500.0,0.00011274,2]
[323282428,1713870632771,-639.86,0.00011274,2]
[323282429,1713870632780,-500.0,0.00011274,2]
[323282430,1713870632790,-1419.55,0.00011274,2]
[323282431,1713870632799,-912.44,0.00011274,2]
[323282432,1713870632810,-1035.54,0.00011274,2]
[323282433,1713870632820,-500.0,0.00011274,2]
[323282434,1713870632830,-500.0,0.00011274,2]
[323282435,1713870632841,-150.0,0.00011274,2]
[323282436,1713870632850,-534.62551604,0.00011274,2]
[323282437,1713870632860,-500.0,0.00011274,2]
[323282438,1713870632869,-500.0,0.00011274,2]
[323282439,1713870632878,-1023.23,0.00011274,2]
[323282440,1713870632887,-533.58956418,0.00011274,2]
[323282441,1713870632897,-500.0,0.00011274,2]
[323282442,1713870632906,-500.0,0.00011274,2]
[323282443,1713870632917,-500.0,0.00011274,2]
[323282444,1713870632926,-532.76,0.00011274,2]
[323282445,1713870632937,-269.46865366,0.00011274,2]
[323282446,1713870632946,-500.0,0.00011274,2]
[323282447,1713870632956,-500.0,0.00011274,2]
[323282448,1713870632966,-500.0,0.00011274,2]
[323282449,1713870632976,-500.0,0.00011274,2]
[323282450,1713870632985,-500.0,0.00011274,2]
[323282451,1713870632994,-500.0,0.00011274,2]
[323282452,1713870633003,-568.45,0.00011274,2]
[323282453,1713870633013,-500.0,0.00011274,2]
[323282454,1713870633022,-500.0,0.00011274,2]
[323282455,1713870633031,-500.0,0.00011274,2]
[323282456,1713870633042,-500.0,0.00011274,2]
[323282457,1713870633051,-2737.86,0.00011274,2]
[323282458,1713870633061,-808.71,0.00011274,2]
[323282459,1713870633070,-500.0,0.00011274,2]
[323282460,1713870633079,-606.82549983,0.00011274,2]
[323282461,1713870633088,-815.28,0.00011274,2]
[323282462,1713870633098,-3706.77,0.00011274,2]
[323282463,1713870633107,-900.0,0.00011274,2]
[323282464,1713870633117,-500.0,0.00011274,2]
[323282465,1713870633126,-500.0,0.00011274,2]
[323282466,1713870633135,-500.0,0.00011274,2]
[323282467,1713870633145,-532.34,0.00011274,2]
[323282468,1713870633154,-500.0,0.00011274,2]
[323282469,1713870633163,-500.0,0.00011274,2]
[323282470,1713870633172,-352.40420208,0.00011274,2]
[323282471,1713870633183,-500.0,0.00011274,2]
[323282472,1713870633193,-1309.27,0.00011274,2]
[323282473,1713870633203,-500.0,0.00011274,2]
[323282474,1713870633212,-500.0,0.00011274,2]
[323282475,1713870633221,-500.0,0.00011274,2]
[323282476,1713870633230,-500.0,0.00011274,2]
[323282477,1713870633240,-500.0,0.00011274,2]
[323282478,1713870633250,-500.0,0.00011274,2]
[323282479,1713870633261,-5299.79,0.00011274,2]
[323282480,1713870633274,-500.0,0.00011274,2]
[323282481,1713870633285,-500.0,0.00011274,2]
[323282482,1713870633297,-2609.46,0.00011274,2]
[323282483,1713870633308,-500.0,0.00011274,2]
[323282484,1713870633318,-1288.51,0.00011274,2]
[323282485,1713870633328,-1979.4,0.00011274,2]
[323282486,1713870633338,-803.81,0.00011274,2]
[323282487,1713870633347,-500.0,0.00011274,2]
[323282488,1713870633357,-3928.86,0.00011274,2]
[323282489,1713870633367,-500.0,0.00011274,2]
[323282490,1713870633378,-2176.55,0.00011274,2]
[323282491,1713870633387,-500.0,0.00011274,2]
[323282492,1713870633397,-500.0,0.00011274,2]
[323282493,1713870633407,-761.02,0.00011274,2]
[323282494,1713870633417,-500.0,0.00011274,2]
[323282495,1713870633427,-500.0,0.00011274,2]
[323282496,1713870633438,-500.0,0.00011274,2]
[323282497,1713870633448,-500.0,0.00011274,2]
[323282498,1713870633458,-500.0,0.00011274,2]
[323282499,1713870633467,-794.17,0.00011274,2]
[323282500,1713870633477,-500.0,0.00011274,2]
[323282501,1713870633486,-4699.45,0.00011274,2]
[323282502,1713870633496,-500.0,0.00011274,2]
[323282503,1713870633506,-4953.6,0.00011274,2]
[323282504,1713870633515,-500.0,0.00011274,2]
[323282505,1713870633525,-1029.07,0.00011274,2]
[323282506,1713870633534,-500.0,0.00011274,2]
[323282507,1713870633543,-397.6570035,0.00011274,2]
[323282508,1713870633553,-8771.13,0.00011274,2]
[323282509,1713870633562,-1117.46,0.00011274,2]
[323282510,1713870633571,-2349.23,0.00011274,2]
[323282511,1713870633580,-1073.52,0.00011274,2]
[323282512,1713870633590,-500.0,0.00011274,2]
[323282513,1713870633599,-500.0,0.00011274,2]
[323282514,1713870633608,-500.0,0.00011274,2]
[323282515,1713870633617,-3173.33,0.00011274,2]
[323282516,1713870633627,-500.0,0.00011274,2]
[323282517,1713870633636,-5394.71,0.00011274,2]
[323282518,1713870633645,-845.33,0.00011274,2]
[323282519,1713870633655,-500.0,0.00011274,2]
[323282520,1713870633664,-500.0,0.00011274,2]
[323282521,1713870633672,-500.0,0.00011274,2]
[323282522,1713870633683,-515.03,0.00011274,2]
[323282523,1713870633694,-500.0,0.00011274,2]
[323282524,1713870633705,-500.0,0.00011274,2]
[323282525,1713870633714,-5587.2,0.00011274,2]
[323282526,1713870633723,-9580.65,0.00011274,2]
[323282527,1713870633731,-1865.42,0.00011274,2]
[323282528,1713870633741,-527.05,0.00011274,2]
[323282529,1713870633750,-500.0,0.00011274,2]
[323282530,1713870633759,-1534.34,0.00011274,2]
[323282531,1713870633768,-1588.45,0.00011274,2]
[323282532,1713870633777,-3496.8,0.00011274,2]
[323282533,1713870633785,-742.62,0.00011274,2]
[323282534,1713870633794,-500.0,0.00011274,2]
[323282535,1713870633803,-500.0,0.00011274,2]
[323282536,1713870633812,-1227.72,0.00011274,2]
[323282537,1713870633822,-500.0,0.00011274,2]
[323282538,1713870633831,-1049.84,0.00011274,2]
[323282539,1713870633840,-500.0,0.00011274,2]
[323282540,1713870633849,-639.86,0.00011274,2]
[323282541,1713870633858,-795.96,0.00011274,2]
[323282542,1713870633867,-500.0,0.00011274,2]
[323282543,1713870633877,-517.63,0.00011274,2]
[323282544,1713870633886,-500.0,0.00011274,2]
[323282545,1713870633895,-25931.4,0.00011274,2]
[323282546,1713870633904,-38495.37,0.00011274,2]
[323282547,1713870634162,-872.06,0.00011274,2]
[323282548,1713870634172,-987.28,0.00011274,2]
[323282549,1713870634182,-2444.72,0.00011275,2]
[323282550,1713870634193,-500.0,0.00011275,2]
[323282551,1713870634202,-536.66,0.00011275,2]
[323282552,1713870634211,-979.15,0.00011275,2]
[323282553,1713870634220,-503.29,0.00011275,2]
[323282554,1713870634229,-500.0,0.00011275,2]
[323282555,1713870634238,-1176.55,0.00011275,2]
[323282556,1713870634247,-500.0,0.00011275,2]
[323282557,1713870634256,-315.18884043,0.00011275,2]
[323282558,1713870634266,-503.34025107,0.00011275,2]
[323282559,1713870634278,-502.13160845,0.00011275,2]
[323282560,1713870634287,-500.0,0.00011275,2]
[323282561,1713870634296,-500.0,0.00011275,2]
[323282562,1713870634305,-680.82,0.00011275,2]
[323282563,1713870634315,-500.0,0.00011275,2]
[323282564,1713870634324,-500.0,0.00011275,2]
[323282565,1713870634333,-500.0,0.00011275,2]
[323282566,1713870634342,-500.0,0.00011275,2]
[323282567,1713870634355,-500.0,0.00011275,2]
[323282568,1713870634365,-500.0,0.00011275,2]
[323282569,1713870634374,-503.95102487,0.00011275,2]
[323282570,1713870634384,-500.0,0.00011275,2]
[323282571,1713870634393,-502.03244005,0.00011275,2]
[323282572,1713870634402,-500.0,0.00011275,2]
[323282573,1713870634411,-504.31228408,0.00011275,2]
[323282574,1713870634420,-618.90849093,0.00011275,2]
[323282575,1713870634429,-500.0,0.00011275,2]
[323282576,1713870634440,-1591.37,0.00011275,2]
[323282577,1713870634450,-500.0,0.00011275,2]
[323282578,1713870634458,-549.22850341,0.00011275,2]
[323282579,1713870634467,-500.0,0.00011275,2]
[323282580,1713870634477,-500.0,0.00011275,2]
[323282581,1713870634486,-502.62509489,0.00011275,2]
[323282582,1713870634495,-498.1579692,0.00011275,2]
[323282583,1713870634504,-1134.53,0.00011275,2]
[323282584,1713870634514,-500.0,0.00011275,2]
[323282585,1713870634524,-500.0,0.00011275,2]
[323282586,1713870634533,-439.4160364,0.00011275,2]
[323282587,1713870634542,-1501.57,0.00011275,2]
[323282588,1713870634552,-500.0,0.00011275,2]
[323282589,1713870634561,-500.0,0.00011275,2]
[323282590,1713870634571,-500.0,0.00011275,2]
[323282591,1713870634581,-500.0,0.00011275,2]
[323282592,1713870634591,-586.08214952,0.00011275,2]
[323282593,1713870634601,-500.0,0.00011275,2]
[323282594,1713870634611,-1152.66,0.00011275,2]
[323282595,1713870634620,-507.94123038,0.00011275,2]
[323282596,1713870634630,-500.0,0.00011275,2]
[323282597,1713870634640,-504.6265962,0.00011275,2]
[323282598,1713870634650,-500.0,0.00011275,2]
[323282599,1713870634659,-500.0,0.00011275,2]
[323282600,1713870634670,-500.0,0.00011275,2]
[323282601,1713870634680,-506.35789469,0.00011275,2]
[323282602,1713870634693,-500.0,0.00011275,2]
[323282603,1713870634702,-500.0,0.00011275,2]
[323282604,1713870634711,-500.0,0.00011275,2]
[323282605,1713870634721,-500.0,0.00011275,2]
[323282606,1713870634730,-500.0,0.00011275,2]
[323282607,1713870634739,-500.0,0.00011275,2]
[323282608,1713870634749,-500.0,0.00011275,2]
[323282609,1713870634758,-500.0,0.00011275,2]
[323282610,1713870634768,-500.0,0.00011275,2]
[323282611,1713870634777,-500.0,0.00011275,2]
[323282612,1713870634786,-500.0,0.00011275,2]
[323282613,1713870634795,-500.0,0.00011275,2]
[323282614,1713870634805,-500.0,0.00011275,2]
[323282615,1713870634814,-670.15,0.00011275,2]
[323282616,1713870634823,-566.43874096,0.00011275,2]
[323282617,1713870634832,-500.0,0.00011275,2]
[323282618,1713870634841,-550.63,0.00011275,2]
[323282619,1713870634850,-500.0,0.00011275,2]
[323282620,1713870634859,-1190.24,0.00011275,2]
[323282621,1713870634868,-177.9055747,0.00011275,2]
[323282622,1713870634878,-500.0,0.00011275,2]
[323282623,1713870634887,-960.55,0.00011275,2]
[323282624,1713870634896,-500.0,0.00011275,2]
[323282625,1713870634905,-208.13727306,0.00011275,2]
[323282626,1713870634915,-1532.23,0.00011275,2]
[323282627,1713870634924,-500.0,0.00011275,2]
[323282628,1713870634932,-1876.22,0.00011275,2]
[323282629,1713870634943,-1204.64,0.00011275,2]
[323282630,1713870634953,-500.0,0.00011275,2]
[323282631,1713870634962,-894.97,0.00011275,2]
[323282632,1713870634971,-629.06,0.00011275,2]
[323282633,1713870634980,-500.0,0.00011275,2]
[323282634,1713870634989,-564.47,0.00011275,2]
[323282635,1713870634998,-500.0,0.00011275,2]
[323282636,1713870635008,-500.0,0.00011275,2]
[323282637,1713870635017,-500.0,0.00011275,2]
[323282638,1713870635026,-453.15212751,0.00011275,2]
[323282639,1713870635035,-500.0,0.00011275,2]
[323282640,1713870635044,-500.0,0.00011275,2]
[323282641,1713870635053,-646.6962572,0.00011275,2]
[323282642,1713870635062,-1005.58,0.00011275,2]
[323282643,1713870635071,-500.0,0.00011275,2]
[323282644,1713870635080,-500.0,0.00011275,2]
[323282645,1713870635089,-500.0,0.00011275,2]
[323282646,1713870635099,-500.0,0.00011275,2]
[323282647,1713870635108,-500.0,0.00011275,2]
[323282648,1713870635118,-500.0,0.00011275,2]
[323282649,1713870635127,-500.0,0.00011275,2]
[323282650,1713870635136,-500.0,0.00011275,2]
[323282651,1713870635145,-500.0,0.00011275,2]
[323282652,1713870635155,-749.25,0.00011275,2]
[323282653,1713870635164,-500.0,0.00011275,2]
[323282654,1713870635174,-6180.813,0.00011275,2]
[323282655,1713870635183,-500.0,0.00011275,2]
[323282656,1713870635193,-500.0,0.00011275,2]
[323282657,1713870635202,-500.0,0.00011275,2]
[323282658,1713870635211,-833.8,0.00011275,2]
[323282659,1713870635220,-500.0,0.00011275,2]
[323282660,1713870635229,-500.0,0.00011275,2]
[323282661,1713870635238,-490.97293598,0.00011275,2]
[323282662,1713870635248,-514.13339924,0.00011275,2]
[323282663,1713870635257,-500.0,0.00011275,2]
[323282664,1713870635268,-500.0,0.00011275,2]
[323282665,1713870635279,-500.0,0.00011275,2]
[323282666,1713870635288,-1354.71,0.00011275,2]
[323282667,1713870635298,-500.0,0.00011275,2]
[323282668,1713870635308,-500.0,0.00011275,2]
[323282669,1713870635317,-887.19,0.00011275,2]
[323282670,1713870635326,-500.0,0.00011275,2]
[323282671,1713870635335,-500.0,0.00011275,2]
[323282672,1713870635345,-500.0,0.00011275,2]
[323282673,1713870635355,-500.0,0.00011275,2]
[323282674,1713870635364,-500.0,0.00011275,2]
[323282675,1713870635373,-2045.23,0.00011275,2]
[323282676,1713870635382,-500.0,0.00011275,2]
[323282677,1713870635392,-311.27105515,0.00011275,2]
[323282678,1713870635401,-500.0,0.00011275,2]
[323282679,1713870635410,-500.0,0.00011275,2]
[323282680,1713870635419,-669.11,0.00011275,2]
[323282681,1713870635428,-552.69,0.00011275,2]
[323282682,1713870635440,-297.98277732,0.00011275,2]
[323282683,1713870635448,-500.0,0.00011275,2]
[323282684,1713870635457,-500.0,0.00011275,2]
[323282685,1713870635466,-855.17,0.00011275,2]
[323282686,1713870635475,-177.17,0.00011275,2]
[323282687,1713870635484,-449.68954738,0.00011275,2]
[323282688,1713870635493,-1565.41,0.00011275,2]
[323282689,1713870635503,-500.0,0.00011275,2]
[323282690,1713870635512,-614.86,0.00011275,2]
[323282691,1713870635521,-365.15484592,0.00011275,2]
[323282692,1713870635530,-500.0,0.00011275,2]
[323282693,1713870635538,-500.0,0.00011275,2]
[323282694,1713870635547,-500.0,0.00011275,2]
[323282695,1713870635556,-500.0,0.00011275,2]
[323282696,1713870635565,-500.0,0.00011275,2]
[323282697,1713870635574,-500.0,0.00011275,2]
[323282698,1713870635584,-500.0,0.00011275,2]
[323282699,1713870635593,-150.43829457,0.00011275,2]
[323282700,1713870635602,-500.0,0.00011275,2]
[323282701,1713870635611,-202.6998776,0.00011275,2]
[323282702,1713870635620,-500.0,0.00011275,2]
[323282703,1713870635629,-9802.62710194,0.00011275,2]
[323282704,1713870636469,-663.82444517,0.00011275,2]
[323282705,1713870636483,-555.59877824,0.00011275,2]
[323282706,1713870636495,-1316.1880874,0.00011275,2]
[323282707,1713870636508,-609.86344662,0.00011275,2]
[323282708,1713870636530,-659.970152,0.00011275,2]
[323282709,1713870636543,-2237.37217207,0.00011275,2]
[323282710,1713870636577,-5102.55447251,0.00011275,2]
[323282711,1713870636589,-3592.37717972,0.00011275,2]
[323282712,1713870636602,-544.02,0.00011275,2]
[323282713,1713870636622,-615.25441392,0.00011275,2]
[323282714,1713870636635,-350.0,0.00011275,2]
[323282738,1713870638308,-2022.81688463,0.00011275,2]
[323282742,1713870638363,-1759.87510573,0.00011275,2]
[323282743,1713870638418,-17571.81776005,0.00011275,2]
[323282744,1713870638428,-500.0,0.00011275,2]
[323282745,1713870638437,-500.0,0.00011275,2]
[323282746,1713870638447,-500.0,0.00011275,2]
[323282747,1713870638456,-500.0,0.00011275,2]
[323282748,1713870638466,-500.0,0.00011275,2]
[323282749,1713870638475,-1456.96,0.00011275,2]
[323282750,1713870638484,-500.0,0.00011275,2]
[323282751,1713870638493,-500.0,0.00011275,2]
[323282752,1713870638503,-500.0,0.00011275,2]
[323282753,1713870638512,-5387.09,0.00011275,2]
[323282754,1713870638522,-500.0,0.00011275,2]
[323282755,1713870638532,-500.0,0.00011275,2]
[323282756,1713870638541,-1269.14,0.00011275,2]
[323282757,1713870638550,-500.0,0.00011275,2]
[323282758,1713870638559,-500.0,0.00011275,2]
[323282759,1713870638568,-315.70187464,0.00011275,2]
[323282760,1713870638578,-500.0,0.00011275,2]
[323282761,1713870638587,-500.0,0.00011275,2]
[323282762,1713870638597,-500.0,0.00011275,2]
[323282763,1713870638606,-501.41258702,0.00011275,2]
[323282764,1713870638616,-500.0,0.00011275,2]
[323282765,1713870638626,-3266.65,0.00011275,2]
[323282766,1713870638636,-500.0,0.00011275,2]
[323282767,1713870638646,-500.0,0.00011275,2]
[323282768,1713870638657,-500.0,0.00011275,2]
[323282769,1713870638667,-1960.14,0.00011275,2]
[323282770,1713870638679,-500.0,0.00011275,2]
[323282771,1713870638691,-553.31,0.00011275,2]
[323282772,1713870638701,-810.05,0.00011275,2]
[323282773,1713870638711,-500.0,0.00011275,2]
[323282774,1713870638721,-500.0,0.00011275,2]
[323282775,1713870638970,-477.61792215,0.00011275,2]
[323282776,1713870638982,-500.0,0.00011275,2]
[323282777,1713870638993,-652.55,0.00011275,2]
[323282778,1713870639002,-500.0,0.00011275,2]
[323282779,1713870639012,-553.85,0.00011275,2]
[323282780,1713870639021,-633.33,0.00011275,2]
[323282781,1713870639031,-249.17211931,0.00011275,2]
[323282782,1713870639040,-500.0,0.00011275,2]
[323282783,1713870639050,-500.0,0.00011275,2]
[323282784,1713870639060,-500.0,0.00011275,2]
[323282785,1713870639069,-500.0,0.00011275,2]
[323282786,1713870639079,-500.0,0.00011275,2]
[323282787,1713870639088,-786.83,0.00011275,2]
[323282788,1713870639098,-500.0,0.00011275,2]
[323282789,1713870639107,-506.32,0.00011275,2]
[323282790,1713870639117,-500.0,0.00011275,2]
[323282791,1713870639126,-500.0,0.00011275,2]
[323282792,1713870639137,-500.0,0.00011275,2]
[323282793,1713870639146,-1131.57,0.00011275,2]
[323282794,1713870639155,-1981.5,0.00011275,2]
[323282795,1713870639164,-500.0,0.00011275,2]
[323282796,1713870639174,-1836.64,0.00011275,2]
[323282797,1713870639183,-500.0,0.00011275,2]
[323282798,1713870639194,-739.68,0.00011275,2]
[323282799,1713870639203,-500.0,0.00011275,2]
[323282801,1713870639214,-2958.94,0.00011275,2]
[323282802,1713870639223,-500.0,0.00011275,2]
[323282804,1713870639232,-500.0,0.00011275,2]
[323282806,1713870639242,-500.0,0.00011275,2]
[323282808,1713870639250,-500.0,0.00011275,2]
[323282809,1713870639260,-500.0,0.00011275,2]
[323282810,1713870639269,-500.0,0.00011275,2]
[323282811,1713870639281,-1495.47,0.00011275,2]
[323282812,1713870639290,-500.0,0.00011275,2]
[323282813,1713870639300,-1186.33,0.00011275,2]
[323282814,1713870639310,-509.13,0.00011275,2]
[323282815,1713870639319,-500.0,0.00011275,2]
[323282816,1713870639329,-500.0,0.00011275,2]
[323282817,1713870639338,-1900.29,0.00011275,2]
[323282818,1713870639347,-2214.48,0.00011275,2]
[323282819,1713870639360,-511.34,0.00011275,2]
[323282820,1713870639370,-551.41008123,0.00011275,2]
[323282821,1713870639379,-500.0,0.00011275,2]
[323282822,1713870639388,-885.52,0.00011275,2]
[323282823,1713870639397,-501.60252294,0.00011275,2]
[323282824,1713870639408,-500.0,0.00011275,2]
[323282825,1713870639417,-500.0,0.00011275,2]
[323282826,1713870639426,-500.0,0.00011275,2]
[323282827,1713870639435,-500.0,0.00011275,2]
[323282828,1713870639446,-500.0,0.00011275,2]
[323282829,1713870639455,-1542.1,0.00011275,2]
[323282830,1713870639465,-500.0,0.00011275,2]
[323282831,1713870639474,-1453.78,0.00011275,2]
[323282832,1713870639484,-500.0,0.00011275,2]
[323282833,1713870639493,-991.8,0.00011275,2]
[323282834,1713870639502,-970.77,0.00011275,2]
[323282835,1713870639511,-500.0,0.00011275,2]
[323282836,1713870639521,-500.0,0.00011275,2]
[323282837,1713870639531,-908.16,0.00011275,2]
[323282838,1713870639541,-3337.25,0.00011275,2]
[323282839,1713870639550,-500.0,0.00011275,2]
[323282840,1713870639559,-191.47128329,0.00011275,2]
[323282841,1713870639569,-154.79048097,0.00011349,2]
[323282842,1713870639578,-1145.40079137,0.00011361,2]
[323282843,1713870639588,-1060.52885847,0.00011362,2]
[323282844,1713870639598,-3418.45849101,0.00011362,2]
[323282845,1713870639607,-762.44,0.00011362,2]
[323282846,1713870639616,-500.0,0.00011362,2]
[323282847,1713870639625,-904.23,0.00011362,2]
[323282848,1713870639636,-804.74,0.00011362,2]
[323282849,1713870639647,-500.0,0.00011362,2]
[323282850,1713870639657,-920.92,0.00011362,2]
[323282851,1713870639667,-504.32,0.00011362,2]
[323282852,1713870639677,-500.0,0.00011362,2]
[323282853,1713870639686,-218.54637711,0.00011362,2]
[323282854,1713870639696,-682.77,0.00011362,2]
[323282855,1713870639705,-947.87,0.00011362,2]
[323282856,1713870639715,-500.0,0.00011362,2]
[323282857,1713870639725,-531.97,0.00011362,2]
[323282858,1713870639736,-500.0,0.00011362,2]
[323282859,1713870639745,-500.0,0.00011362,2]
[323282860,1713870639755,-500.0,0.00011362,2]
[323282861,1713870639765,-1146.89,0.00011362,2]
[323282862,1713870639775,-500.0,0.00011362,2]
[323282863,1713870639784,-500.0,0.00011362,2]
[323282864,1713870639794,-92.15099857,0.00011362,2]
[323282865,1713870639808,-407.84900143,0.00011362,2]
[323282866,1713870639818,-504.07438619,0.00011362,2]
[323282867,1713870639828,-500.0,0.00011362,2]
[323282868,1713870639838,-500.0,0.00011362,2]
[323282869,1713870639847,-500.0,0.00011362,2]
[323282870,1713870639856,-500.0,0.00011362,2]
[323282871,1713870639865,-967.69,0.00011362,2]
[323282872,1713870639875,-580.09,0.00011362,2]
[323282873,1713870639884,-500.0,0.00011362,2]
[323282874,1713870639894,-500.0,0.00011362,2]
[323282875,1713870639903,-500.0,0.00011362,2]
[323282876,1713870639913,-500.0,0.00011362,2]
[323282877,1713870639922,-500.0,0.00011362,2]
[323282878,1713870639932,-500.0,0.00011362,2]
[323282879,1713870639942,-500.0,0.00011362,2]
[323282880,1713870639952,-500.0,0.00011362,2]
[323282881,1713870639962,-500.0,0.00011362,2]
[323282882,1713870639972,-500.0,0.00011362,2]
[323282883,1713870639981,-754.51,0.00011362,2]
[323282884,1713870639991,-556.82,0.00011362,2]
[323282885,1713870640000,-500.0,0.00011362,2]
[323282886,1713870640009,-669.2,0.00011362,2]
[323282887,1713870640019,-500.0,0.00011362,2]
[323282888,1713870640028,-500.0,0.00011362,2]
[323282889,1713870640037,-500.0,0.00011362,2]
[323282890,1713870640046,-500.0,0.00011362,2]
[323282891,1713870640056,-500.0,0.00011362,2]
[323282892,1713870640066,-439.56850667,0.00011362,2]
[323282893,1713870640075,-841.73,0.00011362,2]
[323282894,1713870640084,-500.0,0.00011362,2]
[323282895,1713870640097,-212.19371863,0.00011362,2]
[323282896,1713870640108,-500.0,0.00011362,2]
[323282897,1713870640121,-500.0,0.00011362,2]
[323282898,1713870640131,-530.66,0.00011362,2]
[323282899,1713870640141,-933.62,0.00011362,2]
[323282900,1713870640152,-9185.37,0.00011362,2]
[323282901,1713870640161,-3226.49,0.00011362,2]
[323282902,1713870640171,-500.0,0.00011363,2]
[323282903,1713870640180,-500.0,0.00011363,2]
[323282904,1713870640189,-500.0,0.00011363,2]
[323282907,1713870640199,-500.0,0.00011363,2]
[323282908,1713870640209,-1320.47,0.00011363,4]
[323282909,1713870640219,-1092.55,0.00011365,2]
[323282910,1713870640229,-500.0,0.00011374,2]
[323282911,1713870640239,-500.0,0.00011375,2]
[323282912,1713870640248,-499.99,0.00011376,2]
[323282913,1713870640258,-1006.0,0.000114,2]
[323282914,1713870640267,-369.07884,0.0001143,2]
[323282915,1713870640280,-184.35869881,0.00011438,2]
[323282916,1713870640290,-262.21,0.00011445,2]
[323282917,1713870640300,-86120.3366,0.00011448,2]
[323282918,1713870640310,-173.14341218,0.00011449,2]
[323282919,1713870640320,-1360.42523149,0.00011449,2]
[323282920,1713870640338,-2608.70054198,0.00011449,2]
[323282921,1713870640363,-959.11650902,0.00011449,2]
[323282922,1713870640417,-1571.51211967,0.00011449,2]
[323282923,1713870640428,-172.44193278,0.00011449,2]
[323282924,1713870640438,-628.7,0.00011499,2]
[323282925,1713870640450,-12610.79589738,0.000115,2]
[323282926,1713870640461,-600.0,0.000115,4]
[323282927,1713870640471,-154.79048097,0.00011506,2]
[323282928,1713870640480,-500.0,0.00011536,2]
[323282929,1713870640490,-3806.9574397,0.00011536,2]
[323282930,1713870640644,-1352.377572,0.00011536,2]
[323282931,1713870640756,-487.7897851,0.00011536,2]
[323282932,1713870640774,-46060.21307559,0.00011536,2]